Cogmind - Beta 14 @@@ ROGUE MODE // 2024.10.07 @ 11:24:05 Player: anastasia Result: Destroyed by Y-45 Defender with Heavy Assault Rifle Performance ------------- Evolutions (1) 500 Regions Visited (3) 600 Robots Destroyed (37) 185 Value Destroyed (837) 837 Prototype IDs (3) 60 Alien Tech Used (0) 0 Bonus (0) 0 TOTAL SCORE: 2182 Bonus ------- None Cogmind --------- Core Integrity 0/400 Matter 255/300 Energy 50/100 System Corruption 0% Temperature Cool (9) Movement Core (700) Ox13 Location -9/Materials Parts ------- > --- POWER (1) -------- (None) > --- PROPULSION (2) --- (None) > --- UTILITY (4) ------ High-capacity Storage Unit > --- WEAPON (2) ------- (None) > --- INVENTORY (20) --- Ion Engine Small Storage Unit Improved Targeting Computer EM Pulse Gun Heavy Assault Rifle Heavy Assault Rifle Light Cannon Mini Grenade Launcher Datajack Peak State ------------ > --- POWER ------------ Light Ion Engine > --- PROPULSION ------- Aluminum Leg Aluminum Leg > --- UTILITY ---------- High-capacity Storage Unit Improved Weapon Shielding Improved Weapon Shielding Improved Light Armor Plating > --- WEAPON ----------- Advanced Beam Cannon Heavy Assault Rifle > --- INVENTORY -------- Ion Engine Small Storage Unit Actuator Array ECM Suite EM Pulse Gun EM Pulse Gun Light Assault Rifle Heavy Assault Rifle Light Cannon Datajack [Rating: 19] Favorites ----------- Power Light Ion Engine Engine Light Ion Engine Propulsion Light Treads Treads Light Treads Leg Aluminum Leg Utility High-capacity Storage Unit Device Shield Generator Storage High-capacity Storage Unit Protection Improved Light Armor Plating Weapon Light Assault Rifle Energy Gun EM Pulse Gun Energy Cannon Advanced Beam Cannon Ballistic Gun Light Assault Rifle Ballistic Cannon Light Cannon Launcher Mini Grenade Launcher Build | -11 -10 -10 -9 ------- Run | Yrd Mat Min Mat Slots Evolved 2 | . . . 2 Power . | . . . . Propulsion . | . . . . Utility 2 | . . . 2 Weapon . | . . . . Parts Attached 30 | 6 1 . 23 Power 4 | 1 . . 3 Engine 4 | 1 . . 3 Core . | . . . . Reactor . | . . . . Propulsion 7 | 2 . . 5 Treads 5 | 2 . . 3 Leg 2 | . . . 2 Wheel . | . . . . Hover . | . . . . Flight . | . . . . Utility 8 | 1 1 . 6 Device 3 | . . . 3 Storage 2 | 1 1 . . Processor . | . . . . Hackware . | . . . . Protection 3 | . . . 3 Artifact . | . . . . Weapon 11 | 2 . . 9 Energy Gun 4 | . . . 4 Energy Cannon 1 | . . . 1 Ballistic Gun 4 | 2 . . 2 Ballistic Cannon 1 | . . . 1 Launcher 1 | . . . 1 Special Weapon . | . . . . Impact Weapon . | . . . . Slashing Weapon . | . . . . Piercing Weapon . | . . . . Special Melee Weapon . | . . . . Unidentified Prototypes 3 | . . . 3 Parts Lost 12 | . . . 12 Power 1 | . . . 1 Propulsion 4 | . . . 4 Utility 5 | . . . 5 Weapon 2 | . . . 2 Highest Loss Streak 7 | . . . 7 To Critical Strikes . | . . . . Average Slot Usage (%) 88 | . 85 85 91 Engine 11 | . 14 14 10 Treads 17 | . 28 28 9 Leg 4 | . . . 8 Device 5 | . . . 10 Storage 12 | . 14 14 11 Protection 11 | . . . 20 Energy Gun 3 | . . . 6 Energy Cannon 5 | . . . 9 Ballistic Gun 15 | . 28 28 5 Peak Build Rating 19 | 6 6 7 19 Average Rating 11 | 4 6 6 15 On Entrance 4 | . 6 6 7 Naked Turns . | . . . . Heaviest Build 59 | 10 45 45 59 Greatest Support 40 | 40 40 40 40 Greatest Overweight (x) 19 | . 1 1 19 Average Overweight (x) 1 | . . 1 1 Largest Inventory Capacity 20 | 8 20 20 20 Average Capacity 19 | 7 19 20 20 Most Carried 12 | 1 4 10 12 Average Carried 7 | . 3 5 9 Final Capacity 20 | 8 20 20 20 Final Carried 10 | 1 4 10 9 Class Distribution -------------------- 91% | Mutant 8% | Scavenger-Mutant Dominant Class ---------------- Mutant | -10/Materials Mutant | -10/Mines Mutant | -9/Materials Resources | -11 -10 -10 -9 ----------- Run | Yrd Mat Min Mat Matter Collected 586 | 180 51 93 262 Remotely . | . . . . Salvage Created 1112 | . 16 152 944 Parts 88 | . 2 11 75 Haulers Intercepted 1 | . . . 1 Recyclers Shooed 1 | . . . 1 Parts Field Recycled . | . . . . Retrieved Matter . | . . . . Parts Self-Destructed . | . . . . Prevented . | . . . . Kills | -11 -10 -10 -9 ------- Run | Yrd Mat Min Mat Combat Hostiles Destroyed 28 | . . 5 23 Guns 17 | . . 5 12 Cannons 9 | . . . 9 AOE 2 | . . . 2 Classes Destroyed 9 | . 1 2 6 Tunneler 1 | . . . 1 Hauler 1 | . . . 1 Recycler 1 | . . . 1 Mechanic 1 | . . . 1 Operator 2 | . 1 . 1 Watcher 3 | . . . 3 Swarmer 13 | . . 3 10 Grunt 9 | . . 2 7 Sentry 6 | . . . 6 Best Kill Streak 6 | . 1 3 6 Combat Bots Only 5 | . . 3 5 Max Kills in Single Turn 2 | . 1 1 2 Gunslinging . | . . . . Exploded 2 | . . . 2 Melee . | . . . . Uniques/NPCs Destroyed . | . . . . Combat | -11 -10 -10 -9 -------- Run | Yrd Mat Min Mat Hostile Shots Fired 240 | . 1 27 212 Missed 65 | . 1 9 55 Damage Taken 1960 | . . 230 1730 Core 468 | . . 64 404 Absorbed by Shields 164 | . . . 164 Redirected to Shielding 103 | . . . 103 Core Remaining (%) 87 | 100 . 74 . Volleys Fired 94 | . 4 15 75 Largest 2 | . 2 2 2 Hottest 108 | . 40 40 108 Shots Fired 185 | . 8 30 147 Gun 137 | . 8 30 99 Cannon 46 | . . . 46 Launcher 2 | . . . 2 Special . | . . . . Kinetic 102 | . 8 30 64 Thermal 46 | . . . 46 Explosive 2 | . . . 2 Electromagnetic 35 | . . . 35 Robot Hit Streak 9 | . 2 9 6 Robot Miss Streak 7 | . 1 2 7 Penetration Max . | . . . . Secondary Targets 5 | . . 2 3 Max Gunslinging Chain 1 | . . 1 1 Shots Hit Robots 96 | . 5 19 72 Core Hits 57 | . 3 11 43 Critical Kills . | . . . . Critical Parts Destroyed . | . . . . Critical Strikes 1 | . . . 1 Corrupt 1 | . . . 1 Melee Attacks . | . . . . Impact . | . . . . Slashing . | . . . . Piercing . | . . . . Sneak Attacks . | . . . . Combat Hostiles . | . . . . Follow-up Attacks . | . . . . Damage Inflicted 1583 | . 45 170 1368 Guns 823 | . 45 170 608 Cannons 549 | . . . 549 Explosions 211 | . . . 211 Melee . | . . . . Ramming . | . . . . Kinetic 536 | . 45 170 321 Thermal 549 | . . . 549 Explosive 211 | . . . 211 Electromagnetic 287 | . . . 287 Impact . | . . . . Slashing . | . . . . Piercing . | . . . . Highest Corruption 2 | . 2 2 . Average Corruption 2 | . 2 2 . Corruption Purged . | . . . . Corruption Blocked . | . . . . Effects 8 | . 2 6 . Message Errors 3 | . . 3 . Matter Fused 2 | . 1 1 . Energy Discharges 1 | . 1 . . Data Loss (minor) 1 | . . 1 . Alerts 1 | . . 1 . Overload Shots . | . . . . Overflow Damage 1 | . . . 1 Projectiles 1 | . . . 1 Explosions . | . . . . Melee . | . . . . Knockbacks . | . . . . Impact . | . . . . Kinetic . | . . . . Secondary . | . . . . Self-Inflicted Damage . | . . . . Shots . | . . . . Rammed . | . . . . Targets Rammed . | . . . . Kicked . | . . . . Crushed . | . . . . Highest Temperature 274 | . . 12 274 Average Temperature 63 | . . 8 65 Received Heat Transfer 582 | . . 69 513 Siege Activations . | . . . . Robots Corrupted . | . . . . Combat Hostiles . | . . . . Parts Fried . | . . . . Impact Corruptions . | . . . . Robots Melted . | . . . . Combat Hostiles . | . . . . Parts Melted 3 | . . . 3 Heat Transferred 999 | . . . 999 Parts Sabotaged . | . . . . Parts Stolen . | . . . . Parts Stripped . | . . . . Power Chain Reactions . | . . . . Alert | -11 -10 -10 -9 ------- Run | Yrd Mat Min Mat Peak Influence 344 | . 20 127 344 Initial 7 | . . 7 . Average 80 | . 14 18 131 Maximum Alert Level 1 | . . . 1 Low Security (%) 89 | 100 100 100 81 Level 1 10 | . . . 18 Level 2 . | . . . . Level 3 . | . . . . Level 4 . | . . . . Level 5 . | . . . . High Security . | . . . . Max Security . | . . . . Squads Dispatched 4 | . 3 . 1 Investigation 1 | . . . 1 Extermination . | . . . . Reinforcement 3 | . 3 . . Assault . | . . . . Garrison . | . . . . Intercept . | . . . . Searches Triggered . | . . . . Construction Impeded . | . . . . Haulers Reinforced . | . . . . Active Scanning Responses . | . . . . Cargo Convoy Interrupts . | . . . . Stealth | -11 -10 -10 -9 --------- Run | Yrd Mat Min Mat Distress Signals 4 | . 1 . 3 Communications Jammed . | . . . . Distress Signals . | . . . . Times Spotted 46 | . 3 5 38 Peak Tracking Total 5 | . 1 3 5 Tactical Retreats 4 | . . . 4 Traps | -11 -10 -10 -9 ------- Run | Yrd Mat Min Mat Traps Triggered 2 | . 1 . 1 Indirectly . | . . . . Trap Hack Attempts . | . . . . Triggered . | . . . . Disarmed . | . . . . Reprogrammed . | . . . . Reused . | . . . . Traps Extracted . | . . . . Installed . | . . . . Triggered . | . . . . Machines | -11 -10 -10 -9 ---------- Run | Yrd Mat Min Mat Machines Disabled 1 | . . . 1 Max in Single Turn 1 | . . . 1 Machines Repaired . | . . . . Machines Dismantled . | . . . . Machines Sabotaged . | . . . . Overloaded Fab Kills . | . . . . Hacking | -11 -10 -10 -9 --------- Run | Yrd Mat Min Mat Machines Accessed 5 | . . 1 4 Terminals 3 | . . . 3 Fabricators . | . . . . Repair Stations . | . . . . Recycling Units 1 | . . . 1 Scanalyzers . | . . . . Garrison Access . | . . . . Total Hacks 12 | . . 1 11 Successful 6 | . . 1 5 Failed 6 | . . . 6 Catastrophic 1 | . . . 1 Database Lockouts . | . . . . Manual . | . . . . Terminals 10 | . . . 10 Fabricators . | . . . . Repair Stations . | . . . . Recycling Units 1 | . . . 1 Scanalyzers . | . . . . Garrison Access . | . . . . Terminal Hacks 6 | . . 1 5 Open Door 1 | . . 1 . Emergency Access Points 3 | . . . 3 Unreport Threat 1 | . . . 1 Zone Layout 1 | . . . 1 Fabricator Hacks . | . . . . Repair Station Hacks . | . . . . Recycling Unit Hacks . | . . . . Scanalyzer . | . . . . Garrison Access Hacks . | . . . . Unauthorized Hacks . | . . . . Terminals . | . . . . Fabricators . | . . . . Repair Stations . | . . . . Recycling Units . | . . . . Scanalyzers . | . . . . Garrison Access . | . . . . Data Cores Recovered . | . . . . Used . | . . . . Hacking Detections 3 | . . . 3 Full Trace Events 1 | . . . 1 Feedback Events . | . . . . Feedback Blocked . | . . . . Robot Schematics Acquired . | . . . . Robots Built . | . . . . Authchips . | . . . . Time . | . . . . Total Robot Build Rating . | . . . . Part Schematics Acquired . | . . . . Parts Built . | . . . . Authchips . | . . . . Time . | . . . . Total Part Build Rating . | . . . . Parts Repaired . | . . . . Time . | . . . . Parts Recycled . | . . . . Recycled Matter . | . . . . Retrieved Matter . | . . . . Retrieved Components . | . . . . Parts Scanalyzed . | . . . . Part Schematics Acquired . | . . . . Parts Damaged . | . . . . Bothacking | -11 -10 -10 -9 ------------ Run | Yrd Mat Min Mat Used RIF Installer . | . . . . Robots Hacked . | . . . . Non-combat . | . . . . Combat . | . . . . Robot Hacks Applied . | . . . . Relay Couplers Released . | . . . . Fabnet Peak Effective % . | . . . . Robots Rewired . | . . . . Allies Hacked . | . . . . Hacks Repelled . | . . . . Allies | -11 -10 -10 -9 -------- Run | Yrd Mat Min Mat Total Allies . | . . . . Largest Group . | . . . . Highest-Rated Group . | . . . . Highest-Rated Ally . | . . . . Total Orders . | . . . . Ally Attacks . | . . . . Total Damage . | . . . . Kills . | . . . . Allies Corrupted . | . . . . Allies Melted . | . . . . Intel | -11 -10 -10 -9 ------- Run | Yrd Mat Min Mat Robot Analysis Total . | . . . . Derelict Logs Recovered . | . . . . Drone Launches . | . . . . Drone Recoveries . | . . . . Exploration | -11 -10 -10 -9 ------------- Run | Yrd Mat Min Mat Turns Passed 2762 | 58 228 936 1540 Spaces Moved 929 | 35 93 371 430 Core 8 | 6 . . 2 Treads 727 | 29 93 371 234 Legs 194 | . . . 194 Wheels . | . . . . Hover . | . . . . Flight . | . . . . Fastest Speed 50 | 50 160 240 240 Average Speed 246 | 141 231 240 264 Slowest Speed 1000 | 160 240 240 1000 Overloaded Moves . | . . . . Propulsion Burnouts . | . . . . Robots Hopped . | . . . . Cave-ins Triggered . | . . . . Exploration Rate (%) 37 | 4 19 77 50 Regions Visited 3 Branch Regions 1 Pre-discovered Areas . | . . . . Known Exits Taken . | . . . . Unknown Exits Taken 3 | 1 1 1 . Scrap Searched 3 | . . 3 . Spaces Dug . | . . . . Terrain Destroyed 8 | . . . 8 Melee . | . . . . Projectile . | . . . . AOE 8 | . . . 8 Terrain Rammed . | . . . . Walls Destroyed . | . . . . Machines Disabled . | . . . . Actions | -11 -10 -10 -9 --------- Run | Yrd Mat Min Mat Total 1229 | 41 100 394 694 Wait 141 | . . 3 138 Move 926 | 34 92 370 430 Hop . | . . . . Pick Up 26 | 1 3 6 16 Fast Attach 8 | 6 . . 2 Attach 10 | . . . 10 Detach . | . . . . Swap 13 | . 1 . 12 Drop 11 | . . . 11 Fire 94 | . 4 15 75 Melee . | . . . . Ram . | . . . . Kick . | . . . . Crush . | . . . . Escape Stasis . | . . . . Rewire . | . . . . Trap . | . . . . Miscellaneous . | . . . . Route ------- -11/Scrapyard -10/Materials -10/Mines -9/Materials (discovered 2 exits: [*Mat] / [*Min]) History --------- Turn | Location | Event 12 | -11/Scrapyard | Discovered new exit (range 15) 59 | -11/Scrapyard | Entered Materials 103 | -10/Materials | Discovered new exit (range 16) 219 | -10/Materials | Met 8R-AWN 287 | -10/Materials | Entered Mines 288 | -10/Mines | Followed 8R-AWN into the Mines 307 | -10/Mines | Build established: Mutant 508 | -10/Mines | Discovered new exit (range 12) 1136 | -10/Mines | Met a Derelict who couldn't figure out how to use a Trap Extractor 1223 | -10/Mines | Entered Materials 1223 | -9/Materials | Evolved 2 slots: Utility x2 1563 | -9/Materials | Discovered new exit (range 10) 2111 | -9/Materials | Discovered new exit (range 12) 2705 | -9/Materials | Core integrity fell below 50% 2739 | -9/Materials | Core integrity fell below 20% 2763 | -9/Materials | Destroyed by Y-45 Defender with Heavy Assault Rifle Last Messages --------------- 02696_ K-01 Serf collects debris. 02698_ Lgt. Treads destroyed. 02698_ K-01 Serf cleans the Machine. 02699_ K-01 Serf collects debris. 02701_ K-01 Serf cleans the Machine. 02702_ R-06 Scavenger collects Sml. Matter Pod. 02703_ K-01 Serf collects debris. 02704_ K-01 Serf cleans the Machine. 02706_ K-01 Serf collects debris. 02707_ R-06 Scavenger collects Lgt. Ion Engine. 02707_ K-01 Serf cleans the Machine. 02712_ R-06 Scavenger collects Lgt. Ion Engine. 02713_ Y-45 Defender misfires. 02716_ R-06 Scavenger destroyed. 02717_ K-01 Serf collects debris. 02719_ Critical hit (Burn: +37). 02721_ K-01 Serf collects debris. 02726_ Adv. Beam Cannon destroyed. 02729_ Shield Generator destroyed. 02753_ ECM Suite destroyed. Map ----- +----------------------------------------------------+ | ############### #??# # """ #??????# | | #??# # =%[ #??????# | | #??########+######+########### | | ######## %= | | ##+##### !%= | | ??# !% % | | [= ## """ ###### ############# | | =! [ ## """"" ######+######??????? | | =! ## """"" # #??????? | | ########+# """"" # """"" #??????? | | # = """ # """"" #??????? | | """" " " #%%[T" # """"" #??????? | | """" "R" # ! " + #??????? | | """" """ # # #??????? | | # *% # #??????? | | ######+### ############# #####+########??????? | | ##### = + # # # T #????????????? | | ^ # ! # + + #????????????? | | ##### ^ # + # #% [ [#????????????? | | ????##+####### # # k#=| [[ #????????????? | | ?????????????# # # *# [[ #????????????? | | ?????????????# # # =%# [!#????????????? | | ?????????????# [######## =#####%##????????????? | | ?????????????# #??????#!] #???###?????????????? | | ?????????????# #???####[%[##??????????????????? | | ?????????????######???#" @*]! #??????????????????? | | ??????????????????????#" !! #??????????????????? | | ??????????????????????#|| *%* #??????????????????? | | ??????????????????????#" Y<%=#??????????????????? | | ??????????????????????#!!% #??????????????????? | | ??????????????????????#"" #??????????????????? | | ??????????????????????#" #??????????????????? | | ??????????????????????#### ##??????????????????? | | ?????????????????????????# #???????????????????? | | ?????????????????????????# #???????????????????? | | ?????????????????????????# #???????????????????? | | ?????????????????????????# #???????????????????? | | ????????????????????????? ] ???????????????????? | | ?????????????????????????? ???????????????????? | | ?????????????????????????? ???????????????????? | | ??????????????????????????? ?????????????????????? | | ?????????????????????????????????????????????????? | | ?????????????????????????????????????????????????? | | ?????????????????????????????????????????????????? | | ?????????????????????????????????????????????????? | | ?????????????????????????????????????????????????? | | ?????????????????????????????????????????????????? | | ?????????????????????????????????????????????????? | | ?????????????????????????????????????????????????? | | ?????????????????????????????????????????????????? | +----------------------------------------------------+ Best States ------------- Heat Dissipation 28 Energy Generation 10 Energy Capacity 250 Matter Stores 300 Matter Capacity 300 Sight Range 16 Terrain Scan Density 10 ECM Strength 1 Armor Coverage 150 Weapon Shielding 66 Evasion (%) 40 Recoil Reduction 6 Item Schematics ----------------- None Robot Schematics ------------------ None Fabricated ------------ Nothing Alien Tech Used ----------------- None Achievements -------------- None Challenges ------------ None Game ------ Seed EnhancedWarpFemtoactuators Manual? 0 Play Time 00:19:19 Cumulative 9.7 hours Start 2024.10.07 @ 11:04:52 End 2024.10.07 @ 11:24:05 Sessions 1 Manual Loads 0 Difficulty Rogue Special Mode None Game No. 16 Rogue 8 Adventurer 8 Explorer 0 Win Type - Total 0 Types 0/0/0/0/0/0/0/0/0 Lore% 5 Gallery% 17 Achievement% 17 Wizard Run 0 Options --------- Layout 1 ASCII 0 Keyboard 0 Movement Mouse Keybinds 0 Fullscreen 1 Font 32/SmallcapsGlow Map View 50x35 Zoom Use 0% Tactical HUD 1 Map Filters NONE Filters NONE Steam 1 RUN: fa1bacb3-f6d5-4ede-9e4a-88662d197c11